Workbook

Sheet Model Instructions
A1: Model Instructions

Sheet Target Assumptions
A1: Target | P1: Assumptions
A2: ($Millions, except per share data)
D5: Actual | J5: Projections for the Period Ending December 31,
D6: 2011 | F6: =D6+1 -> 2012 | H6: =F6+1 -> 2013 | J6: =H6+1 -> 2014 | L6: =J6+1 -> 2015 | N6: =L6+1 -> 2016 | P6: =N6+1 -> 2017 | R6: =P6+1 -> 2018
B8: Income Statement
B10: Sales Growth | D10: NA | F10: =+IF(ISERROR('Target IS'!F9/'Target IS'!D9-1),0,'Target IS'!F9/'Target IS'!D9-1) -> 0.05228393857 | H10: =+IF(ISERROR('Target IS'!H9/'Target IS'!F9-1),0,'Target IS'!H9/'Target IS'!F9-1) -> 0.04841486347 | J10: 0.055 | L10: =J10 -> 0.055 | N10: =L10 -> 0.055 | P10: 0.055 | R10: 0.055
B11: COGS as a % of Sales | D11: =+IF(ISERROR('Target IS'!D11/'Target IS'!D9),0,'Target IS'!D11/'Target IS'!D9) -> 0.4130319668 | E11: =+IF(ISERROR('Target IS'!E11/'Target IS'!E9),0,'Target IS'!E11/'Target IS'!E9) -> 0 | F11: =+IF(ISERROR('Target IS'!F11/'Target IS'!F9),0,'Target IS'!F11/'Target IS'!F9) -> 0.441163228 | G11: =+IF(ISERROR('Target IS'!G11/'Target IS'!G9),0,'Target IS'!G11/'Target IS'!G9) -> 0 | H11: =+IF(ISERROR('Target IS'!H11/'Target IS'!H9),0,'Target IS'!H11/'Target IS'!H9) -> 0.42038651 | J11: 0.43 | L11: =J11 -> 0.43 | N11: =L11 -> 0.43 | P11: 0.43 | R11: 0.43
B12: SG&A % annual increase (decrease) | D12: NA | F12: =+IF(ISERROR('Target IS'!F15/'Target IS'!D15-1),0,'Target IS'!F15/'Target IS'!D15-1) -> -0.01387802971 | H12: =+IF(ISERROR('Target IS'!H15/'Target IS'!F15-1),0,'Target IS'!H15/'Target IS'!F15-1) -> 0.04519326065 | J12: 0.04 | L12: 0.04 | N12: 0.04 | P12: 0.04 | R12: 0.04
B13: Other Operating Expense as a % of Sales | D13: =+IF(ISERROR('Target IS'!D16/'Target IS'!D9),0,'Target IS'!D16/'Target IS'!D9) -> 0.1311836348 | E13: =+IF(ISERROR('Target IS'!E16/'Target IS'!E9),0,'Target IS'!E16/'Target IS'!E9) -> 0 | F13: =+IF(ISERROR('Target IS'!F16/'Target IS'!F9),0,'Target IS'!F16/'Target IS'!F9) -> 0.1200307228 | G13: =+IF(ISERROR('Target IS'!G16/'Target IS'!G9),0,'Target IS'!G16/'Target IS'!G9) -> 0 | H13: =+IF(ISERROR('Target IS'!H16/'Target IS'!H9),0,'Target IS'!H16/'Target IS'!H9) -> 0.1047366427 | J13: 0.11 | L13: 0.11 | N13: 0.11 | P13: 0.11 | R13: 0.11
B14: Income from Affiliates Growth | D14: NA | F14: =IF('Target IS'!D23=0,0,'Target IS'!F23/'Target IS'!D23-1) -> 0 | H14: =IF('Target IS'!F23=0,0,'Target IS'!H23/'Target IS'!F23-1) -> 0 | J14: 0 | L14: 0 | N14: =L14 -> 0 | P14: =N14 -> 0 | R14: =P14 -> 0
B15: Noncontrolling Interest - % of Earnings | D15: =+IF(ISERROR('Target IS'!D30/('Target IS'!D28-'Target IS'!D31)),0,'Target IS'!D30/('Target IS'!D28-'Target IS'!D31)) -> 0 | E15: =+IF(ISERROR('Target IS'!E30/('Target IS'!E28-'Target IS'!E31)),0,'Target IS'!E30/('Target IS'!E28-'Target IS'!E31)) -> 0 | F15: =+IF(ISERROR('Target IS'!F30/('Target IS'!F28-'Target IS'!F31)),0,'Target IS'!F30/('Target IS'!F28-'Target IS'!F31)) -> 0 | G15: =+IF(ISERROR('Target IS'!G30/('Target IS'!G28-'Target IS'!G31)),0,'Target IS'!G30/('Target IS'!G28-'Target IS'!G31)) -> 0 | H15: =+IF(ISERROR('Target IS'!H30/('Target IS'!H28-'Target IS'!H31)),0,'Target IS'!H30/('Target IS'!H28-'Target IS'!H31)) -> 0 | J15: 0 | L15: 0 | N15: =L15 -> 0 | P15: =N15 -> 0 | R15: =P15 -> 0
B16: EBITDA Growth | D16: NA | F16: =+IF(ISERROR('Target IS'!F49/'Target IS'!D49-1),0,'Target IS'!F49/'Target IS'!D49-1) -> 0.05815093107 | G16: =+IF(ISERROR('Target IS'!G49/'Target IS'!E49-1),0,'Target IS'!G49/'Target IS'!E49-1) -> 0 | H16: =+IF(ISERROR('Target IS'!H49/'Target IS'!F49-1),0,'Target IS'!H49/'Target IS'!F49-1) -> 0.2738499537 | I16: =+IF(ISERROR('Target IS'!I49/'Target IS'!G49-1),0,'Target IS'!I49/'Target IS'!G49-1) -> 0 | J16: =+IF(ISERROR('Target IS'!J49/'Target IS'!H49-1),0,'Target IS'!J49/'Target IS'!H49-1) -> -0.001119667959 | L16: =+IF(ISERROR('Target IS'!L49/'Target IS'!J49-1),0,'Target IS'!L49/'Target IS'!J49-1) -> 0.07495904163 | N16: =+IF(ISERROR('Target IS'!N49/'Target IS'!L49-1),0,'Target IS'!N49/'Target IS'!L49-1) -> 0.0743099481 | P16: =+IF(ISERROR('Target IS'!P49/'Target IS'!N49-1),0,'Target IS'!P49/'Target IS'!N49-1) -> 0.07369325147 | R16: =+IF(ISERROR('Target IS'!R49/'Target IS'!P49-1),0,'Target IS'!R49/'Target IS'!P49-1) -> 0.07310664406
B17: EBITDA Margin | D17: =+IF(ISERROR('Target IS'!D49/'Target IS'!D9),0,'Target IS'!D49/'Target IS'!D9) -> 0.170619548 | E17: =+IF(ISERROR('Target IS'!E49/'Target IS'!E9),0,'Target IS'!E49/'Target IS'!E9) -> 0 | F17: =+IF(ISERROR('Target IS'!F49/'Target IS'!F9),0,'Target IS'!F49/'Target IS'!F9) -> 0.1715708345 | G17: =+IF(ISERROR('Target IS'!G49/'Target IS'!G9),0,'Target IS'!G49/'Target IS'!G9) -> 0 | H17: =+IF(ISERROR('Target IS'!H49/'Target IS'!H9),0,'Target IS'!H49/'Target IS'!H9) -> 0.2084628016 | I17: =+IF(ISERROR('Target IS'!I49/'Target IS'!I9),0,'Target IS'!I49/'Target IS'!I9) -> 0 | J17: =+IF(ISERROR('Target IS'!J49/'Target IS'!J9),0,'Target IS'!J49/'Target IS'!J9) -> 0.1973738317 | L17: =+IF(ISERROR('Target IS'!L49/'Target IS'!L9),0,'Target IS'!L49/'Target IS'!L9) -> 0.2011078531 | N17: =+IF(ISERROR('Target IS'!N49/'Target IS'!N9),0,'Target IS'!N49/'Target IS'!N9) -> 0.2047887841 | P17: =+IF(ISERROR('Target IS'!P49/'Target IS'!P9),0,'Target IS'!P49/'Target IS'!P9) -> 0.2084173795 | R17: =+IF(ISERROR('Target IS'!R49/'Target IS'!R9),0,'Target IS'!R49/'Target IS'!R9) -> 0.2119943836
B19: Balance Sheet
B21: Receivable Days | D21: =+IF(ISERROR(('Target BS'!D10/'Target IS'!D9)*365),0,('Target BS'!D10/'Target IS'!D9)*365) -> 59.76352387 | E21: =+IF(ISERROR(('Target BS'!E10/'Target IS'!E9)*365),0,('Target BS'!E10/'Target IS'!E9)*365) -> 0 | F21: =+IF(ISERROR(('Target BS'!F10/'Target IS'!F9)*365),0,('Target BS'!F10/'Target IS'!F9)*365) -> 61.5793098 | G21: =+IF(ISERROR(('Target BS'!G10/'Target IS'!G9)*365),0,('Target BS'!G10/'Target IS'!G9)*365) -> 0 | H21: =+IF(ISERROR(('Target BS'!H10/'Target IS'!H9)*365),0,('Target BS'!H10/'Target IS'!H9)*365) -> 64.29569281 | J21: 59 | L21: =J21 -> 59 | N21: =L21 -> 59 | P21: 59 | R21: 59
B22: Inventory Days | D22: =+IF(ISERROR(('Target BS'!D11/'Target IS'!D11)*365),0,('Target BS'!D11/'Target IS'!D11)*365) -> 79.57591093 | E22: =+IF(ISERROR(('Target BS'!E11/'Target IS'!E11)*365),0,('Target BS'!E11/'Target IS'!E11)*365) -> 0 | F22: =+IF(ISERROR(('Target BS'!F11/'Target IS'!F11)*365),0,('Target BS'!F11/'Target IS'!F11)*365) -> 82.80812871 | G22: =+IF(ISERROR(('Target BS'!G11/'Target IS'!G11)*365),0,('Target BS'!G11/'Target IS'!G11)*365) -> 0 | H22: =+IF(ISERROR(('Target BS'!H11/'Target IS'!H11)*365),0,('Target BS'!H11/'Target IS'!H11)*365) -> 88.5027943 | J22: 84 | L22: 84 | N22: 84 | P22: 84 | R22: 84
B23: Other Current Assets % of Sales | D23: =+IF(ISERROR('Target BS'!D12/'Target IS'!D9),0,'Target BS'!D12/'Target IS'!D9) -> 0.07831442825 | E23: =+IF(ISERROR('Target BS'!E12/'Target IS'!E9),0,'Target BS'!E12/'Target IS'!E9) -> 0 | F23: =+IF(ISERROR('Target BS'!F12/'Target IS'!F9),0,'Target BS'!F12/'Target IS'!F9) -> 0.05206981487 | G23: =+IF(ISERROR('Target BS'!G12/'Target IS'!G9),0,'Target BS'!G12/'Target IS'!G9) -> 0 | H23: =+IF(ISERROR('Target BS'!H12/'Target IS'!H9),0,'Target BS'!H12/'Target IS'!H9) -> 0.06267525578 | J23: 0.055 | L23: 0.055 | N23: 0.055 | P23: 0.055 | R23: 0.055
B24: Accounts Payable Days | D24: =+IF(ISERROR(('Target BS'!D29/'Target IS'!D11)*365),0,('Target BS'!D29/'Target IS'!D11)*365) -> 42.95276653 | E24: =+IF(ISERROR(('Target BS'!E29/'Target IS'!E11)*365),0,('Target BS'!E29/'Target IS'!E11)*365) -> 0 | F24: =+IF(ISERROR(('Target BS'!F29/'Target IS'!F11)*365),0,('Target BS'!F29/'Target IS'!F11)*365) -> 39.09227352 | G24: =+IF(ISERROR(('Target BS'!G29/'Target IS'!G11)*365),0,('Target BS'!G29/'Target IS'!G11)*365) -> 0 | H24: =+IF(ISERROR(('Target BS'!H29/'Target IS'!H11)*365),0,('Target BS'!H29/'Target IS'!H11)*365) -> 40.92842978 | J24: 40 | L24: 40 | N24: 40 | P24: 40 | R24: 40
B25: Other Current Liabilities % of COGS | D25: =+IF(ISERROR('Target BS'!D30/'Target IS'!D11),0,'Target BS'!D30/'Target IS'!D11) -> 0.6558704453 | E25: =+IF(ISERROR('Target BS'!E30/'Target IS'!E11),0,'Target BS'!E30/'Target IS'!E11) -> 0 | F25: =+IF(ISERROR('Target BS'!F30/'Target IS'!F11),0,'Target BS'!F30/'Target IS'!F11) -> 0.7911988954 | G25: =+IF(ISERROR('Target BS'!G30/'Target IS'!G11),0,'Target BS'!G30/'Target IS'!G11) -> 0 | H25: =+IF(ISERROR('Target BS'!H30/'Target IS'!H11),0,'Target BS'!H30/'Target IS'!H11) -> 0.6044107926 | J25: 0.68 | L25: 0.68 | N25: 0.68 | P25: 0.68 | R25: 0.68
B26: Change in Other Assets | D26: NA | F26: ='Target BS'!F25-'Target BS'!D25 -> -36.6 | H26: ='Target BS'!H25-'Target BS'!F25 -> -4.4 | J26: 0 | L26: 0 | N26: =L26 -> 0 | P26: =N26 -> 0 | R26: =P26 -> 0
B27: Change in Other LT Liabilities | D27: NA | F27: ='Target BS'!F41-'Target BS'!D41 -> -232 | H27: ='Target BS'!H41-'Target BS'!F41 -> 59.8 | J27: 0 | L27: 0 | N27: =L27 -> 0 | P27: =N27 -> 0 | R27: =P27 -> 0
B28: Working Capital/Sales (Excl Cash & Debt) | D28: =+IF(ISERROR((SUM('Target BS'!D10:D12)-SUM('Target BS'!D29:D30))/'Target IS'!D9),0,(SUM('Target BS'!D10:D12)-SUM('Target BS'!D29:D30))/'Target IS'!D9) -> 0.01259719629 | E28: =+IF(ISERROR((SUM('Target BS'!E10:E12)-SUM('Target BS'!E29:E30))/'Target IS'!E9),0,(SUM('Target BS'!E10:E12)-SUM('Target BS'!E29:E30))/'Target IS'!E9) -> 0 | F28: =+IF(ISERROR((SUM('Target BS'!F10:F12)-SUM('Target BS'!F29:F30))/'Target IS'!F9),0,(SUM('Target BS'!F10:F12)-SUM('Target BS'!F29:F30))/'Target IS'!F9) -> -0.07542972164 | G28: =+IF(ISERROR((SUM('Target BS'!G10:G12)-SUM('Target BS'!G29:G30))/'Target IS'!G9),0,(SUM('Target BS'!G10:G12)-SUM('Target BS'!G29:G30))/'Target IS'!G9) -> 0 | H28: =+IF(ISERROR((SUM('Target BS'!H10:H12)-SUM('Target BS'!H29:H30))/'Target IS'!H9),0,(SUM('Target BS'!H10:H12)-SUM('Target BS'!H29:H30))/'Target IS'!H9) -> 0.03953517747 | I28: =+IF(ISERROR((SUM('Target BS'!I10:I12)-SUM('Target BS'!I29:I30))/'Target IS'!I9),0,(SUM('Target BS'!I10:I12)-SUM('Target BS'!I29:I30))/'Target IS'!I9) -> 0 | J28: =+IF(ISERROR((SUM('Target BS'!J10:J12)-SUM('Target BS'!J29:J30))/'Target IS'!J9),0,(SUM('Target BS'!J10:J12)-SUM('Target BS'!J29:J30))/'Target IS'!J9) -> -0.02392054795 | L28: =+IF(ISERROR((SUM('Target BS'!L10:L12)-SUM('Target BS'!L29:L30))/'Target IS'!L9),0,(SUM('Target BS'!L10:L12)-SUM('Target BS'!L29:L30))/'Target IS'!L9) -> -0.02392054795 | N28: =+IF(ISERROR((SUM('Target BS'!N10:N12)-SUM('Target BS'!N29:N30))/'Target IS'!N9),0,(SUM('Target BS'!N10:N12)-SUM('Target BS'!N29:N30))/'Target IS'!N9) -> -0.02392054795 | P28: =+IF(ISERROR((SUM('Target BS'!P10:P12)-SUM('Target BS'!P29:P30))/'Target IS'!P9),0,(SUM('Target BS'!P10:P12)-SUM('Target BS'!P29:P30))/'Target IS'!P9) -> -0.02392054795 | R28: =+IF(ISERROR((SUM('Target BS'!R10:R12)-SUM('Target BS'!R29:R30))/'Target IS'!R9),0,(SUM('Target BS'!R10:R12)-SUM('Target BS'!R29:R30))/'Target IS'!R9) -> -0.02392054795
B30: Cash Flow
B32: Capital Expenditures | D32: 26.7 | F32: 13.8 | H32: 10.3 | J32: =J33*'Target IS'!J9 -> 16.70487 | L32: =L33*'Target IS'!L9 -> 17.62363785 | N32: =N33*'Target IS'!N9 -> 18.59293793 | P32: =P33*'Target IS'!P9 -> 19.61554952 | R32: =R33*'Target IS'!R9 -> 20.69440474
B33: Capex as a % of Sales | D33: =+IF(ISERROR(D32/'Target IS'!D9),0,D32/'Target IS'!D9) -> 0.007441264179 | E33: =+IF(ISERROR(E32/'Target IS'!E9),0,E32/'Target IS'!E9) -> 0 | F33: =+IF(ISERROR(F32/'Target IS'!F9),0,F32/'Target IS'!F9) -> 0.0036549514 | G33: =+IF(ISERROR(G32/'Target IS'!G9),0,G32/'Target IS'!G9) -> 0 | H33: =+IF(ISERROR(H32/'Target IS'!H9),0,H32/'Target IS'!H9) -> 0.002601995705 | J33: 0.004 | L33: =J33 -> 0.004 | N33: =L33 -> 0.004 | P33: =N33 -> 0.004 | R33: =P33 -> 0.004
B34: Depreciation | D34: 123 | F34: 123.6 | H34: 126 | J34: =J35*'Target IS'!J9 -> 133.63896 | K34: =K35*'Target IS'!K9 -> 0 | L34: =L35*'Target IS'!L9 -> 140.9891028 | N34: =N35*'Target IS'!N9 -> 148.7435035 | P34: =P35*'Target IS'!P9 -> 156.9243961 | R34: =R35*'Target IS'!R9 -> 165.5552379
B35: Depreciation as a % of Sales | D35: =+IF(ISERROR(D34/'Target IS'!D9),0,D34/'Target IS'!D9) -> 0.03427998105 | E35: =+IF(ISERROR(E34/'Target IS'!E9),0,E34/'Target IS'!E9) -> 0 | F35: =+IF(ISERROR(F34/'Target IS'!F9),0,F34/'Target IS'!F9) -> 0.03273565167 | G35: =+IF(ISERROR(G34/'Target IS'!G9),0,G34/'Target IS'!G9) -> 0 | H35: =+IF(ISERROR(H34/'Target IS'!H9),0,H34/'Target IS'!H9) -> 0.03183023873 | J35: 0.032 | L35: =J35 -> 0.032 | N35: =L35 -> 0.032 | P35: =N35 -> 0.032 | R35: =P35 -> 0.032
B36: Goodwill Amortization (Pre-6/2001) | D36: 0 | F36: 0 | H36: 0 | J36: 0 | L36: =J36 -> 0 | N36: =L36 -> 0 | P36: =N36 -> 0 | R36: =P36 -> 0
B37: Amortization of Intangibles | D37: 299.6 | F37: 313.9 | H37: 302.9 | J37: 300 | L37: 300 | N37: 300 | P37: 300 | R37: 300
B38: Retirement of Senior Debt | D38: 2320.2 | F38: 350.4 | H38: 450 | J38: 300 | L38: 300 | N38: 300 | P38: 300 | R38: 300
B39: Retirement of Subordinated Debt | D39: 0 | F39: 0 | H39: 0 | J39: 0 | L39: 0 | N39: 0 | P39: 0 | R39: 0
B40: Chg in Deferred Taxes - Asset | D40: NA | F40: ='Target BS'!F23-'Target BS'!D23 -> 2 | H40: ='Target BS'!H23-'Target BS'!F23 -> -5.8 | J40: 0 | L40: 0 | N40: 0 | P40: 0 | R40: 0
B41: Chg in Deferred Taxes - Liab | D41: NA | F41: ='Target BS'!F40-'Target BS'!D40 -> -147.4 | H41: ='Target BS'!H40-'Target BS'!F40 -> -123.2 | J41: 0 | L41: 0 | N41: 0 | P41: 0 | R41: 0
B42: Dividend from Affiliates | D42: 0 | F42: 0 | H42: 0 | J42: 0 | L42: =L43*-'Target IS'!L23 -> 0 | N42: =N43*-'Target IS'!N23 -> 0 | P42: =P43*-'Target IS'!P23 -> 0 | R42: =R43*-'Target IS'!R23 -> 0
B43: Payout Ratio of Affiliates | D43: =IF('Target IS'!D23=0,0,D42/-'Target IS'!D23) -> 0 | F43: =IF('Target IS'!F23=0,0,F42/-'Target IS'!F23) -> 0 | H43: =IF('Target IS'!H23=0,0,H42/-'Target IS'!H23) -> 0 | J43: 0 | L43: =J43 -> 0 | N43: =L43 -> 0 | P43: =N43 -> 0 | R43: =P43 -> 0
B44: Dividends per Share | D44: 0 | F44: 0 | H44: 0 | J44: 0 | L44: =IF(L45=0,0,L45*'Target IS'!L53) -> 0 | N44: =IF(N45=0,0,N45*'Target IS'!N53) -> 0 | P44: =IF(P45=0,0,P45*'Target IS'!P53) -> 0 | R44: =IF(R45=0,0,R45*'Target IS'!R53) -> 0
B45: Dividend Payout Ratio | D45: 0 | F45: =+IF(ISERROR(F44/'Target IS'!F53),0,F44/'Target IS'!F53) -> 0 | G45: =+IF(ISERROR(G44/'Target IS'!G53),0,G44/'Target IS'!G53) -> 0 | H45: =+IF(ISERROR(H44/'Target IS'!H53),0,H44/'Target IS'!H53) -> 0 | J45: 0 | L45: =J45 -> 0 | N45: =L45 -> 0 | P45: =N45 -> 0 | R45: =P45 -> 0
B46: Dividends Paid | D46: =D44*D52 -> 0 | F46: =F44*F52 -> 0 | H46: =H44*H52 -> 0 | J46: =J44*J52 -> 0 | L46: =L44*L52 -> 0 | N46: =N44*N52 -> 0 | P46: =P44*P52 -> 0 | R46: =R44*R52 -> 0
B47: Effective Tax Rate | D47: =+IF(ISERROR('Target IS'!D31/'Target IS'!D28),0,'Target IS'!D31/'Target IS'!D28) -> 3.388297872 | E47: =+IF(ISERROR('Target IS'!E31/'Target IS'!E28),0,'Target IS'!E31/'Target IS'!E28) -> 0 | F47: =+IF(ISERROR('Target IS'!F31/'Target IS'!F28),0,'Target IS'!F31/'Target IS'!F28) -> 2.449029126 | G47: =+IF(ISERROR('Target IS'!G31/'Target IS'!G28),0,'Target IS'!G31/'Target IS'!G28) -> 0 | H47: =+IF(ISERROR('Target IS'!H31/'Target IS'!H28),0,'Target IS'!H31/'Target IS'!H28) -> 0.385697984 | J47: 0.4 | L47: =J47 -> 0.4 | N47: =L47 -> 0.4 | P47: =N47 -> 0.4 | R47: =P47 -> 0.4
B48: Marginal Tax Rate | D48: 0.38 | F48: =D48 -> 0.38 | H48: =F48 -> 0.38 | J48: 0.4 | L48: =J48 -> 0.4 | N48: =L48 -> 0.4 | P48: =N48 -> 0.4 | R48: =P48 -> 0.4
B50: Other
B52: Shares Outstanding - Basic | D52: 0 | F52: 0 | H52: 170.8 | J52: 170.8 | L52: =J52 -> 170.8 | N52: =L52 -> 170.8 | P52: =N52 -> 170.8 | R52: =P52 -> 170.8
B53: Shares Outstanding - Diluted | D53: 0 | F53: 0 | H53: 174.5 | J53: 174.5 | L53: =J53 -> 174.5 | N53: =L53 -> 174.5 | P53: =N53 -> 174.5 | R53: =P53 -> 174.5
B54: Revolving Credit Facility Rate | D54: 0 | F54: 0 | H54: 0 | J54: 0.02 | L54: =J54 -> 0.02 | N54: =L54 -> 0.02 | P54: =N54 -> 0.02 | R54: =P54 -> 0.02
B55: Senior Debt Rate | D55: 0 | F55: 0 | H55: 0 | J55: 0.05 | L55: =J55 -> 0.05 | N55: =L55 -> 0.05 | P55: =N55 -> 0.05 | R55: =P55 -> 0.05
B56: Subordinated Debt | D56: 0 | F56: 0 | H56: 0 | J56: 0.08 | L56: =J56 -> 0.08 | N56: =L56 -> 0.08 | P56: =N56 -> 0.08 | R56: =P56 -> 0.08
B57: Average Interest Rate | D57: NA | F57: =IF(AVERAGE('Target BS'!D38:F38)=0,0,'Target IS'!F26/AVERAGE('Target BS'!D38:F38)) -> 0.06451356138 | H57: =IF(AVERAGE('Target BS'!F38:H38)=0,0,'Target IS'!H26/AVERAGE('Target BS'!F38:H38)) -> 0.05685311797 | J57: =IF(AVERAGE('Target BS'!H38:J38)=0,0,'Target IS'!J26/AVERAGE('Target BS'!H38:J38)) -> 0.05 | L57: =IF(AVERAGE('Target BS'!J38:L38)=0,0,'Target IS'!L26/AVERAGE('Target BS'!J38:L38)) -> 0.05 | N57: =IF(AVERAGE('Target BS'!L38:N38)=0,0,'Target IS'!N26/AVERAGE('Target BS'!L38:N38)) -> 0.05 | P57: =IF(AVERAGE('Target BS'!N38:P38)=0,0,'Target IS'!P26/AVERAGE('Target BS'!N38:P38)) -> 0.05 | R57: =IF(AVERAGE('Target BS'!P38:R38)=0,0,'Target IS'!R26/AVERAGE('Target BS'!P38:R38)) -> 0.05
B58: Marketable Securities Rate | D58: 0 | F58: 0 | H58: 0 | J58: 0 | L58: =J58 -> 0 | N58: =L58 -> 0 | P58: =N58 -> 0 | R58: =P58 -> 0

Sheet Target IS
A1: ='Target Assumptions'!A1 -> Target | S1: Income Statement
A2: ($Millions, except per share data)
D6: ='Target Assumptions'!D5 -> Actual | J6: ='Target Assumptions'!J5 -> Projections for the Period Ending December 31, | U6: 1 | V6: 0 = circ off
D7: ='Target Assumptions'!D6 -> 2011 | F7: ='Target Assumptions'!F6 -> 2012 | H7: ='Target Assumptions'!H6 -> 2013 | J7: ='Target Assumptions'!J6 -> 2014 | L7: ='Target Assumptions'!L6 -> 2015 | N7: ='Target Assumptions'!N6 -> 2016 | P7: ='Target Assumptions'!P6 -> 2017 | R7: ='Target Assumptions'!R6 -> 2018 | V7: 1 = circ on
B9: Sales | D9: 3588.1 | F9: 3775.7 | H9: 3958.5 | J9: =H9*(1+'Target Assumptions'!J10) -> 4176.2175 | L9: =J9*(1+'Target Assumptions'!L10) -> 4405.909462 | N9: =L9*(1+'Target Assumptions'!N10) -> 4648.234483 | P9: =N9*(1+'Target Assumptions'!P10) -> 4903.887379 | R9: =P9*(1+'Target Assumptions'!R10) -> 5173.601185
B11: Cost of Goods Sold | D11: =1188.2+293.8 -> 1482 | F11: =1357+308.7 -> 1665.7 | H11: =1372.3+291.8 -> 1664.1 | J11: =J9*'Target Assumptions'!J11 -> 1795.773525 | L11: =L9*'Target Assumptions'!L11 -> 1894.541069 | N11: =N9*'Target Assumptions'!N11 -> 1998.740828 | P11: =P9*'Target Assumptions'!P11 -> 2108.671573 | R11: =R9*'Target Assumptions'!R11 -> 2224.64851
B13: Gross Profit | D13: =D9-D11 -> 2106.1 | F13: =F9-F11 -> 2110 | H13: =H9-H11 -> 2294.4 | J13: =J9-J11 -> 2380.443975 | L13: =L9-L11 -> 2511.368394 | N13: =N9-N11 -> 2649.493655 | P13: =P9-P11 -> 2795.215806 | R13: =R9-R11 -> 2948.952676
B15: SG&A | D15: 1023.2 | E15: 1009 | F15: 1009 | H15: 1054.6 | J15: =H15*(1+'Target Assumptions'!J12) -> 1096.784 | L15: =J15*(1+'Target Assumptions'!L12) -> 1140.65536 | N15: =L15*(1+'Target Assumptions'!N12) -> 1186.281574 | P15: =N15*(1+'Target Assumptions'!P12) -> 1233.732837 | R15: =P15*(1+'Target Assumptions'!R12) -> 1283.082151
B16: Other Operating Expense | D16: =375.5+1.7+93.5 -> 470.7 | F16: =377.9+75.3 -> 453.2 | H16: =341.9+72.7 -> 414.6 | J16: =J9*'Target Assumptions'!J13 -> 459.383925 | L16: =L9*'Target Assumptions'!L13 -> 484.6500409 | N16: =N9*'Target Assumptions'!N13 -> 511.3057931 | P16: =P9*'Target Assumptions'!P13 -> 539.4276117 | R16: =R9*'Target Assumptions'!R13 -> 569.0961304
B17: Depreciation | D17: ='Target Assumptions'!D34 -> 123 | E17: ='Target Assumptions'!E34 -> 0 | F17: ='Target Assumptions'!F34 -> 123.6 | H17: ='Target Assumptions'!H34 -> 126 | J17: ='Target Assumptions'!J34 -> 133.63896 | L17: ='Target Assumptions'!L34 -> 140.9891028 | N17: ='Target Assumptions'!N34 -> 148.7435035 | P17: ='Target Assumptions'!P34 -> 156.9243961 | R17: ='Target Assumptions'!R34 -> 165.5552379
B18: Amortization | D18: ='Target Assumptions'!D36+'Target Assumptions'!D37 -> 299.6 | F18: ='Target Assumptions'!F36+'Target Assumptions'!F37 -> 313.9 | H18: ='Target Assumptions'!H36+'Target Assumptions'!H37 -> 302.9 | J18: ='Target Assumptions'!J36+'Target Assumptions'!J37 -> 300 | L18: ='Target Assumptions'!L36+'Target Assumptions'!L37 -> 300 | N18: ='Target Assumptions'!N36+'Target Assumptions'!N37 -> 300 | P18: ='Target Assumptions'!P36+'Target Assumptions'!P37 -> 300 | R18: ='Target Assumptions'!R36+'Target Assumptions'!R37 -> 300
B20: EBIT | D20: =D13-SUM(D15:D18) -> 189.6 | F20: =F13-SUM(F15:F18) -> 210.3 | H20: =H13-SUM(H15:H18) -> 396.3 | J20: =J13-SUM(J15:J18) -> 390.63709 | L20: =L13-SUM(L15:L18) -> 445.07389 | N20: =N13-SUM(N15:N18) -> 503.1627843 | P20: =P13-SUM(P15:P18) -> 565.130961 | R20: =R13-SUM(R15:R18) -> 631.2191565
B22: Unusual (Gain) Loss | D22: -37.2 | F22: 0 | H22: 0 | J22: 0 | L22: 0 | N22: 0 | P22: 0 | R22: 0
B23: (Income) from Affiliates | F23: 0 | H23: 0 | J23: =H23*(1+'Target Assumptions'!J14) -> 0 | L23: =J23*(1+'Target Assumptions'!L14) -> 0 | N23: =L23*(1+'Target Assumptions'!N14) -> 0 | P23: =N23*(1+'Target Assumptions'!P14) -> 0 | R23: =P23*(1+'Target Assumptions'!R14) -> 0
B24: Other Expense (Income) | D24: =5.9+54.1 -> 60 | F24: 10.9 | H24: 11.9 | J24: 0 | L24: 0 | N24: 0 | P24: 0 | R24: 0
B25: Interest (Income) | D25: -4.3 | F25: -3.9 | G25: 2.4 | H25: -2.4 | J25: =IF($U$6=0,0,-'Target Assumptions'!J58*AVERAGE('Target BS'!H9:J9)) -> 0 | L25: =IF($U$6=0,0,-'Target Assumptions'!L58*AVERAGE('Target BS'!J9:L9)) -> 0 | N25: =IF($U$6=0,0,-'Target Assumptions'!N58*AVERAGE('Target BS'!L9:N9)) -> 0 | P25: =IF($U$6=0,0,-'Target Assumptions'!P58*AVERAGE('Target BS'!N9:P9)) -> 0 | R25: =IF($U$6=0,0,-'Target Assumptions'!R58*AVERAGE('Target BS'!P9:R9)) -> 0
B26: Interest Expense | D26: 152.3 | F26: 162.1 | H26: 123.9 | J26: =IF($U$6=0,0,'Target Assumptions'!J54*AVERAGE('Target BS'!H34:J34)+'Target Assumptions'!J55*AVERAGE('Target BS'!H35:J35)+'Target Assumptions'!J56*AVERAGE('Target BS'!H36:J36)) -> 95.545 | L26: =IF($U$6=0,0,'Target Assumptions'!L54*AVERAGE('Target BS'!J34:L34)+'Target Assumptions'!L55*AVERAGE('Target BS'!J35:L35)+'Target Assumptions'!L56*AVERAGE('Target BS'!J36:L36)) -> 80.545 | N26: =IF($U$6=0,0,'Target Assumptions'!N54*AVERAGE('Target BS'!L34:N34)+'Target Assumptions'!N55*AVERAGE('Target BS'!L35:N35)+'Target Assumptions'!N56*AVERAGE('Target BS'!L36:N36)) -> 65.545 | P26: =IF($U$6=0,0,'Target Assumptions'!P54*AVERAGE('Target BS'!N34:P34)+'Target Assumptions'!P55*AVERAGE('Target BS'!N35:P35)+'Target Assumptions'!P56*AVERAGE('Target BS'!N36:P36)) -> 50.545 | R26: =IF($U$6=0,0,'Target Assumptions'!R54*AVERAGE('Target BS'!P34:R34)+'Target Assumptions'!R55*AVERAGE('Target BS'!P35:R35)+'Target Assumptions'!R56*AVERAGE('Target BS'!P36:R36)) -> 35.545
B28: Earnings before Taxes | D28: =D20-SUM(D22:D26) -> 18.8 | F28: =F20-SUM(F22:F26) -> 41.2 | H28: =H20-SUM(H22:H26) -> 262.9 | J28: =J20-SUM(J22:J26) -> 295.09209 | L28: =L20-SUM(L22:L26) -> 364.52889 | N28: =N20-SUM(N22:N26) -> 437.6177843 | P28: =P20-SUM(P22:P26) -> 514.585961 | R28: =R20-SUM(R22:R26) -> 595.6741565
B30: Noncontrolling Interest | D30: 0 | F30: 0 | H30: 0 | J30: ='Target Assumptions'!J15*(J28-J31) -> 0 | L30: ='Target Assumptions'!L15*(L28-L31) -> 0 | N30: ='Target Assumptions'!N15*(N28-N31) -> 0 | P30: ='Target Assumptions'!P15*(P28-P31) -> 0 | R30: ='Target Assumptions'!R15*(R28-R31) -> 0
B31: Taxes | D31: 63.7 | F31: 100.9 | H31: 101.4 | J31: =J28*'Target Assumptions'!J47 -> 118.036836 | L31: =L28*'Target Assumptions'!L47 -> 145.811556 | N31: =N28*'Target Assumptions'!N47 -> 175.0471137 | P31: =P28*'Target Assumptions'!P47 -> 205.8343844 | R31: =R28*'Target Assumptions'!R47 -> 238.2696626
B33: Net Income before Extra Items | D33: =D28-D30-D31 -> -44.9 | F33: =F28-F30-F31 -> -59.7 | H33: =H28-H30-H31 -> 161.5 | J33: =J28-J30-J31 -> 177.055254 | L33: =L28-L30-L31 -> 218.717334 | N33: =N28-N30-N31 -> 262.5706706 | P33: =P28-P30-P31 -> 308.7515766 | R33: =R28-R30-R31 -> 357.4044939
B35: Extraordinary Items | D35: 0.6 | F35: 0.7 | H35: 0.4 | J35: 0 | L35: 0 | N35: 0 | P35: 0 | R35: 0
B36: Discontinued Operations | D36: 0 | F36: 0 | H36: 0 | J36: 0 | L36: 0 | N36: 0 | P36: 0 | R36: 0
B38: Net Income after Extra Items | D38: =D33+D35+D36 -> -44.3 | F38: =F33+F35+F36 -> -59 | H38: =H33+H35+H36 -> 161.9 | J38: =J33+J35+J36 -> 177.055254 | L38: =L33+L35+L36 -> 218.717334 | N38: =N33+N35+N36 -> 262.5706706 | P38: =P33+P35+P36 -> 308.7515766 | R38: =R33+R35+R36 -> 357.4044939
B40: EPS - Basic | D40: =+IF(ISERROR(D33/'Target Assumptions'!D52),0,D33/'Target Assumptions'!D52) -> 0 | E40: =+IF(ISERROR(E33/'Target Assumptions'!E52),0,E33/'Target Assumptions'!E52) -> 0 | F40: =+IF(ISERROR(F33/'Target Assumptions'!F52),0,F33/'Target Assumptions'!F52) -> 0 | G40: =+IF(ISERROR(G33/'Target Assumptions'!G52),0,G33/'Target Assumptions'!G52) -> 0 | H40: =+IF(ISERROR(H33/'Target Assumptions'!H52),0,H33/'Target Assumptions'!H52) -> 0.9455503513 | I40: =+IF(ISERROR(I33/'Target Assumptions'!I52),0,I33/'Target Assumptions'!I52) -> 0 | J40: =+IF(ISERROR(J33/'Target Assumptions'!J52),0,J33/'Target Assumptions'!J52) -> 1.036623267 | K40: =+IF(ISERROR(K33/'Target Assumptions'!K52),0,K33/'Target Assumptions'!K52) -> 0 | L40: =+IF(ISERROR(L33/'Target Assumptions'!L52),0,L33/'Target Assumptions'!L52) -> 1.280546452 | M40: =+IF(ISERROR(M33/'Target Assumptions'!M52),0,M33/'Target Assumptions'!M52) -> 0 | N40: =+IF(ISERROR(N33/'Target Assumptions'!N52),0,N33/'Target Assumptions'!N52) -> 1.537299008 | O40: =+IF(ISERROR(O33/'Target Assumptions'!O52),0,O33/'Target Assumptions'!O52) -> 0 | P40: =+IF(ISERROR(P33/'Target Assumptions'!P52),0,P33/'Target Assumptions'!P52) -> 1.80767902 | Q40: =+IF(ISERROR(Q33/'Target Assumptions'!Q52),0,Q33/'Target Assumptions'!Q52) -> 0 | R40: =+IF(ISERROR(R33/'Target Assumptions'!R52),0,R33/'Target Assumptions'!R52) -> 2.092532166
B42: EPS - Diluted | D42: =+IF(ISERROR(D33/'Target Assumptions'!D53),0,D33/'Target Assumptions'!D53) -> 0 | E42: =+IF(ISERROR(E33/'Target Assumptions'!E53),0,E33/'Target Assumptions'!E53) -> 0 | F42: =+IF(ISERROR(F33/'Target Assumptions'!F53),0,F33/'Target Assumptions'!F53) -> 0 | G42: =+IF(ISERROR(G33/'Target Assumptions'!G53),0,G33/'Target Assumptions'!G53) -> 0 | H42: =+IF(ISERROR(H33/'Target Assumptions'!H53),0,H33/'Target Assumptions'!H53) -> 0.9255014327 | I42: =+IF(ISERROR(I33/'Target Assumptions'!I53),0,I33/'Target Assumptions'!I53) -> 0 | J42: =+IF(ISERROR(J33/'Target Assumptions'!J53),0,J33/'Target Assumptions'!J53) -> 1.014643289 | K42: =+IF(ISERROR(K33/'Target Assumptions'!K53),0,K33/'Target Assumptions'!K53) -> 0 | L42: =+IF(ISERROR(L33/'Target Assumptions'!L53),0,L33/'Target Assumptions'!L53) -> 1.253394464 | M42: =+IF(ISERROR(M33/'Target Assumptions'!M53),0,M33/'Target Assumptions'!M53) -> 0 | N42: =+IF(ISERROR(N33/'Target Assumptions'!N53),0,N33/'Target Assumptions'!N53) -> 1.504702983 | O42: =+IF(ISERROR(O33/'Target Assumptions'!O53),0,O33/'Target Assumptions'!O53) -> 0 | P42: =+IF(ISERROR(P33/'Target Assumptions'!P53),0,P33/'Target Assumptions'!P53) -> 1.769350009 | Q42: =+IF(ISERROR(Q33/'Target Assumptions'!Q53),0,Q33/'Target Assumptions'!Q53) -> 0 | R42: =+IF(ISERROR(R33/'Target Assumptions'!R53),0,R33/'Target Assumptions'!R53) -> 2.048163289
B44: Other Financial Data
B46: Depreciation & Amortization | D46: ='Target Assumptions'!D34+'Target Assumptions'!D36+'Target Assumptions'!D37 -> 422.6 | F46: ='Target Assumptions'!F34+'Target Assumptions'!F36+'Target Assumptions'!F37 -> 437.5 | H46: ='Target Assumptions'!H34+'Target Assumptions'!H36+'Target Assumptions'!H37 -> 428.9 | J46: ='Target Assumptions'!J34+'Target Assumptions'!J36+'Target Assumptions'!J37 -> 433.63896 | L46: ='Target Assumptions'!L34+'Target Assumptions'!L36+'Target Assumptions'!L37 -> 440.9891028 | N46: ='Target Assumptions'!N34+'Target Assumptions'!N36+'Target Assumptions'!N37 -> 448.7435035 | P46: ='Target Assumptions'!P34+'Target Assumptions'!P36+'Target Assumptions'!P37 -> 456.9243961 | R46: ='Target Assumptions'!R34+'Target Assumptions'!R36+'Target Assumptions'!R37 -> 465.5552379
B47: Capital Expenditures | D47: ='Target Assumptions'!D32 -> 26.7 | F47: ='Target Assumptions'!F32 -> 13.8 | H47: ='Target Assumptions'!H32 -> 10.3 | J47: ='Target Assumptions'!J32 -> 16.70487 | L47: ='Target Assumptions'!L32 -> 17.62363785 | N47: ='Target Assumptions'!N32 -> 18.59293793 | P47: ='Target Assumptions'!P32 -> 19.61554952 | R47: ='Target Assumptions'!R32 -> 20.69440474
B49: EBITDA | D49: =D20+D46 -> 612.2 | F49: =F20+F46 -> 647.8 | H49: =H20+H46 -> 825.2 | J49: =J20+J46 -> 824.27605 | L49: =L20+L46 -> 886.0629928 | N49: =N20+N46 -> 951.9062878 | P49: =P20+P46 -> 1022.055357 | R49: =R20+R46 -> 1096.774394
B51: EPS (Excluding Unusual Items) | D51: =+IF(ISERROR((D33+D22*(1-'Target Assumptions'!D48))/'Target Assumptions'!D53),0,(D33+D22*(1-'Target Assumptions'!D48))/'Target Assumptions'!D53) -> 0 | E51: =+IF(ISERROR((E33+E22*(1-'Target Assumptions'!E48))/'Target Assumptions'!E53),0,(E33+E22*(1-'Target Assumptions'!E48))/'Target Assumptions'!E53) -> 0 | F51: =+IF(ISERROR((F33+F22*(1-'Target Assumptions'!F48))/'Target Assumptions'!F53),0,(F33+F22*(1-'Target Assumptions'!F48))/'Target Assumptions'!F53) -> 0 | G51: =+IF(ISERROR((G33+G22*(1-'Target Assumptions'!G48))/'Target Assumptions'!G53),0,(G33+G22*(1-'Target Assumptions'!G48))/'Target Assumptions'!G53) -> 0 | H51: =+IF(ISERROR((H33+H22*(1-'Target Assumptions'!H48))/'Target Assumptions'!H53),0,(H33+H22*(1-'Target Assumptions'!H48))/'Target Assumptions'!H53) -> 0.9255014327 | I51: =+IF(ISERROR((I33+I22*(1-'Target Assumptions'!I48))/'Target Assumptions'!I53),0,(I33+I22*(1-'Target Assumptions'!I48))/'Target Assumptions'!I53) -> 0 | J51: =+IF(ISERROR((J33+J22*(1-'Target Assumptions'!J48))/'Target Assumptions'!J53),0,(J33+J22*(1-'Target Assumptions'!J48))/'Target Assumptions'!J53) -> 1.014643289 | K51: =+IF(ISERROR((K33+K22*(1-'Target Assumptions'!K48))/'Target Assumptions'!K53),0,(K33+K22*(1-'Target Assumptions'!K48))/'Target Assumptions'!K53) -> 0 | L51: =+IF(ISERROR((L33+L22*(1-'Target Assumptions'!L48))/'Target Assumptions'!L53),0,(L33+L22*(1-'Target Assumptions'!L48))/'Target Assumptions'!L53) -> 1.253394464 | M51: =+IF(ISERROR((M33+M22*(1-'Target Assumptions'!M48))/'Target Assumptions'!M53),0,(M33+M22*(1-'Target Assumptions'!M48))/'Target Assumptions'!M53) -> 0 | N51: =+IF(ISERROR((N33+N22*(1-'Target Assumptions'!N48))/'Target Assumptions'!N53),0,(N33+N22*(1-'Target Assumptions'!N48))/'Target Assumptions'!N53) -> 1.504702983 | O51: =+IF(ISERROR((O33+O22*(1-'Target Assumptions'!O48))/'Target Assumptions'!O53),0,(O33+O22*(1-'Target Assumptions'!O48))/'Target Assumptions'!O53) -> 0 | P51: =+IF(ISERROR((P33+P22*(1-'Target Assumptions'!P48))/'Target Assumptions'!P53),0,(P33+P22*(1-'Target Assumptions'!P48))/'Target Assumptions'!P53) -> 1.769350009 | Q51: =+IF(ISERROR((Q33+Q22*(1-'Target Assumptions'!Q48))/'Target Assumptions'!Q53),0,(Q33+Q22*(1-'Target Assumptions'!Q48))/'Target Assumptions'!Q53) -> 0 | R51: =+IF(ISERROR((R33+R22*(1-'Target Assumptions'!R48))/'Target Assumptions'!R53),0,(R33+R22*(1-'Target Assumptions'!R48))/'Target Assumptions'!R53) -> 2.048163289
B53: Cash EPS | F53: =+IF(ISERROR('Target CF'!F27/'Target Assumptions'!F53),0,'Target CF'!F27/'Target Assumptions'!F53) -> 0 | G53: =+IF(ISERROR('Target CF'!G27/'Target Assumptions'!G53),0,'Target CF'!G27/'Target Assumptions'!G53) -> 0 | H53: =+IF(ISERROR('Target CF'!H27/'Target Assumptions'!H53),0,'Target CF'!H27/'Target Assumptions'!H53) -> 0.5564469914 | I53: =+IF(ISERROR('Target CF'!I27/'Target Assumptions'!I53),0,'Target CF'!I27/'Target Assumptions'!I53) -> 0 | J53: =+IF(ISERROR('Target CF'!J27/'Target Assumptions'!J53),0,'Target CF'!J27/'Target Assumptions'!J53) -> 4.969006447 | K53: =+IF(ISERROR('Target CF'!K27/'Target Assumptions'!K53),0,'Target CF'!K27/'Target Assumptions'!K53) -> 0 | L53: =+IF(ISERROR('Target CF'!L27/'Target Assumptions'!L53),0,'Target CF'!L27/'Target Assumptions'!L53) -> 3.812038936 | M53: =+IF(ISERROR('Target CF'!M27/'Target Assumptions'!M53),0,'Target CF'!M27/'Target Assumptions'!M53) -> 0 | N53: =+IF(ISERROR('Target CF'!N27/'Target Assumptions'!N53),0,'Target CF'!N27/'Target Assumptions'!N53) -> 4.109517028 | O53: =+IF(ISERROR('Target CF'!O27/'Target Assumptions'!O53),0,'Target CF'!O27/'Target Assumptions'!O53) -> 0 | P53: =+IF(ISERROR('Target CF'!P27/'Target Assumptions'!P53),0,'Target CF'!P27/'Target Assumptions'!P53) -> 4.422872952 | Q53: =+IF(ISERROR('Target CF'!Q27/'Target Assumptions'!Q53),0,'Target CF'!Q27/'Target Assumptions'!Q53) -> 0 | R53: =+IF(ISERROR('Target CF'!R27/'Target Assumptions'!R53),0,'Target CF'!R27/'Target Assumptions'!R53) -> 4.753074119
B55: Dividends per share | F55: ='Target Assumptions'!F44 -> 0 | H55: ='Target Assumptions'!H44 -> 0 | J55: ='Target Assumptions'!J44 -> 0 | L55: ='Target Assumptions'!L44 -> 0 | N55: ='Target Assumptions'!N44 -> 0 | P55: ='Target Assumptions'!P44 -> 0 | R55: ='Target Assumptions'!R44 -> 0
B57: Dividend-adjusted Cash EPS | F57: =F53-F55 -> 0 | H57: =H53-H55 -> 0.5564469914 | J57: =J53-J55 -> 4.969006447 | L57: =L53-L55 -> 3.812038936 | N57: =N53-N55 -> 4.109517028 | P57: =P53-P55 -> 4.422872952 | R57: =R53-R55 -> 4.753074119

Sheet Target BS
A1: ='Target IS'!A1 -> Target | S1: Balance Sheet
A2: ($Millions, except per share data)
D6: ='Target IS'!D6 -> Actual | J6: ='Target IS'!J6 -> Projections for the Period Ending December 31,
D7: ='Target IS'!D7 -> 2011 | F7: ='Target IS'!F7 -> 2012 | H7: ='Target IS'!H7 -> 2013 | J7: ='Target IS'!J7 -> 2014 | L7: ='Target IS'!L7 -> 2015 | N7: ='Target IS'!N7 -> 2016 | P7: ='Target IS'!P7 -> 2017 | R7: ='Target IS'!R7 -> 2018
B9: Cash | D9: =813.6+23.1+18.2 -> 854.9 | E9: 187.3 | F9: =838.8+26.6+16.7 -> 882.1 | H9: =255.5+5.7+15.1 -> 276.3 | J9: ='Target CF'!J52 -> 826.6867549 | L9: ='Target CF'!L52 -> 1174.263911 | N9: ='Target CF'!N52 -> 1572.781695 | P9: ='Target CF'!P52 -> 2024.957475 | R9: ='Target CF'!R52 -> 2533.674505
B10: Accounts Receivable | D10: 587.5 | F10: 637 | H10: 697.3 | J10: =('Target Assumptions'!J21*'Target IS'!J9)/365 -> 675.0598151 | L10: =('Target Assumptions'!L21*'Target IS'!L9)/365 -> 712.1881049 | N10: =('Target Assumptions'!N21*'Target IS'!N9)/365 -> 751.3584507 | P10: =('Target Assumptions'!P21*'Target IS'!P9)/365 -> 792.6831655 | R10: =('Target Assumptions'!R21*'Target IS'!R9)/365 -> 836.2807396
B11: Inventory | D11: 323.1 | F11: 377.9 | H11: 403.5 | J11: =('Target Assumptions'!J22*'Target IS'!J11)/365 -> 413.2739071 | L11: =('Target Assumptions'!L22*'Target IS'!L11)/365 -> 436.003972 | N11: =('Target Assumptions'!N22*'Target IS'!N11)/365 -> 459.9841905 | P11: =('Target Assumptions'!P22*'Target IS'!P11)/365 -> 485.283321 | R11: =('Target Assumptions'!R22*'Target IS'!R11)/365 -> 511.9739036
B12: Other | D12: =91+190 -> 281 | F12: =40.1+156.5 -> 196.6 | H12: =105.4+142.7 -> 248.1 | J12: ='Target IS'!J9*'Target Assumptions'!J23 -> 229.6919625 | L12: ='Target IS'!L9*'Target Assumptions'!L23 -> 242.3250204 | N12: ='Target IS'!N9*'Target Assumptions'!N23 -> 255.6528966 | P12: ='Target IS'!P9*'Target Assumptions'!P23 -> 269.7138059 | R12: ='Target IS'!R9*'Target Assumptions'!R23 -> 284.5480652
B14: Current Assets | D14: =SUM(D9:D12) -> 2046.5 | F14: =SUM(F9:F12) -> 2093.6 | H14: =SUM(H9:H12) -> 1625.2 | J14: =SUM(J9:J12) -> 2144.71244 | L14: =SUM(L9:L12) -> 2564.781009 | N14: =SUM(N9:N12) -> 3039.777233 | P14: =SUM(P9:P12) -> 3572.637768 | R14: =SUM(R9:R12) -> 4166.477213
B16: Property, Plant, & Equipment | D16: =22.4+848 -> 870.4 | F16: =25+833.7 -> 858.7 | H16: =844.7+26.7 -> 871.4 | J16: =H16+'Target Assumptions'!J32 -> 888.10487 | L16: =J16+'Target Assumptions'!L32 -> 905.7285079 | N16: =L16+'Target Assumptions'!N32 -> 924.3214458 | P16: =N16+'Target Assumptions'!P32 -> 943.9369953 | R16: =P16+'Target Assumptions'!R32 -> 964.6314
B17: Accumulated Depreciation | D17: 0 | F17: 0 | H17: 0 | J17: =H17-'Target Assumptions'!J34 -> -133.63896 | L17: =J17-'Target Assumptions'!L34 -> -274.6280628 | N17: =L17-'Target Assumptions'!N34 -> -423.3715663 | P17: =N17-'Target Assumptions'!P34 -> -580.2959624 | R17: =P17-'Target Assumptions'!R34 -> -745.8512003
B19: Net Property, Plant, & Equipment | D19: =SUM(D16:D17) -> 870.4 | F19: =SUM(F16:F17) -> 858.7 | H19: =SUM(H16:H17) -> 871.4 | J19: =SUM(J16:J17) -> 754.46591 | L19: =SUM(L16:L17) -> 631.1004451 | N19: =SUM(N16:N17) -> 500.9498795 | P19: =SUM(P16:P17) -> 363.6410329 | R19: =SUM(R16:R17) -> 218.7801997
B21: Goodwill | D21: 4372.1 | F21: 4366.7 | H21: 4503.4 | J21: =H21-'Target Assumptions'!J36 -> 4503.4 | L21: =J21-'Target Assumptions'!L36 -> 4503.4 | N21: =L21-'Target Assumptions'!N36 -> 4503.4 | P21: =N21-'Target Assumptions'!P36 -> 4503.4 | R21: =P21-'Target Assumptions'!R36 -> 4503.4
B22: Intangible Assets | D22: 2040.2 | F22: 1746.6 | H22: 1525.8 | J22: =H22-'Target Assumptions'!J37 -> 1225.8 | L22: =J22-'Target Assumptions'!L37 -> 925.8 | N22: =L22-'Target Assumptions'!N37 -> 625.8 | P22: =N22-'Target Assumptions'!P37 -> 325.8 | R22: =P22-'Target Assumptions'!R37 -> 25.8
B23: Deferred Taxes | D23: 26.8 | F23: 28.8 | H23: 23 | J23: =H23+'Target Assumptions'!J40 -> 23 | L23: =J23+'Target Assumptions'!L40 -> 23 | N23: =L23+'Target Assumptions'!N40 -> 23 | P23: =N23+'Target Assumptions'!P40 -> 23 | R23: =P23+'Target Assumptions'!R40 -> 23
B24: Equity in Affiliates | D24: 0 | F24: 0 | H24: 0 | J24: =H24-'Target IS'!J23-'Target Assumptions'!J42 -> 0 | L24: =J24-'Target IS'!L23-'Target Assumptions'!L42 -> 0 | N24: =L24-'Target IS'!N23-'Target Assumptions'!N42 -> 0 | P24: =N24-'Target IS'!P23-'Target Assumptions'!P42 -> 0 | R24: =P24-'Target IS'!R23-'Target Assumptions'!R42 -> 0
B25: Other | D25: 130.2 | F25: 93.6 | H25: 89.2 | J25: =H25+'Target Assumptions'!J26 -> 89.2 | L25: =J25+'Target Assumptions'!L26 -> 89.2 | N25: =L25+'Target Assumptions'!N26 -> 89.2 | P25: =N25+'Target Assumptions'!P26 -> 89.2 | R25: =P25+'Target Assumptions'!R26 -> 89.2
B27: Total Assets | D27: =D14+D19+SUM(D21:D25) -> 9486.2 | F27: =F14+F19+SUM(F21:F25) -> 9188 | H27: =H14+H19+SUM(H21:H25) -> 8638 | J27: =J14+J19+SUM(J21:J25) -> 8740.57835 | L27: =L14+L19+SUM(L21:L25) -> 8737.281454 | N27: =N14+N19+SUM(N21:N25) -> 8782.127112 | P27: =P14+P19+SUM(P21:P25) -> 8877.678801 | R27: =R14+R19+SUM(R21:R25) -> 9026.657413
B29: Accounts Payable | D29: 174.4 | F29: 178.4 | H29: 186.6 | J29: =('Target Assumptions'!J24*'Target IS'!J11)/365 -> 196.7970986 | L29: =('Target Assumptions'!L24*'Target IS'!L11)/365 -> 207.6209391 | N29: =('Target Assumptions'!N24*'Target IS'!N11)/365 -> 219.0400907 | P29: =('Target Assumptions'!P24*'Target IS'!P11)/365 -> 231.0872957 | R29: =('Target Assumptions'!R24*'Target IS'!R11)/365 -> 243.797097
B30: Other | D30: =1146.4-174.4 -> 972 | F30: =1496.3-178.4 -> 1317.9 | H30: =1192.4-186.6 -> 1005.8 | J30: ='Target IS'!J11*'Target Assumptions'!J25 -> 1221.125997 | L30: ='Target IS'!L11*'Target Assumptions'!L25 -> 1288.287927 | N30: ='Target IS'!N11*'Target Assumptions'!N25 -> 1359.143763 | P30: ='Target IS'!P11*'Target Assumptions'!P25 -> 1433.89667 | R30: ='Target IS'!R11*'Target Assumptions'!R25 -> 1512.760987
B32: Current Liabilities | D32: =SUM(D29:D30) -> 1146.4 | F32: =SUM(F29:F30) -> 1496.3 | H32: =SUM(H29:H30) -> 1192.4 | J32: =SUM(J29:J30) -> 1417.923096 | L32: =SUM(L29:L30) -> 1495.908866 | N32: =SUM(N29:N30) -> 1578.183854 | P32: =SUM(P29:P30) -> 1664.983965 | R32: =SUM(R29:R30) -> 1756.558084
B34: Revolving Credit Facility | D34: 0 | F34: 0 | H34: 0 | J34: ='Target CF'!J51 -> 0 | L34: ='Target CF'!L51 -> 0 | N34: ='Target CF'!N51 -> 0 | P34: ='Target CF'!P51 -> 0 | R34: ='Target CF'!R51 -> 0
B35: Senior Debt | D35: 2727.6 | F35: 2297.7 | H35: 2060.9 | J35: =H35-'Target Assumptions'!J38 -> 1760.9 | L35: =J35-'Target Assumptions'!L38 -> 1460.9 | N35: =L35-'Target Assumptions'!N38 -> 1160.9 | P35: =N35-'Target Assumptions'!P38 -> 860.9 | R35: =P35-'Target Assumptions'!R38 -> 560.9
B36: Subordinated Debt | D36: 0 | F36: 0 | H36: 0 | J36: =H36-'Target Assumptions'!J39 -> 0 | L36: =J36-'Target Assumptions'!L39 -> 0 | N36: =L36-'Target Assumptions'!N39 -> 0 | P36: =N36-'Target Assumptions'!P39 -> 0 | R36: =P36-'Target Assumptions'!R39 -> 0
B38: Total | D38: =SUM(D34:D36) -> 2727.6 | F38: =SUM(F34:F36) -> 2297.7 | H38: =SUM(H34:H36) -> 2060.9 | J38: =SUM(J34:J36) -> 1760.9 | L38: =SUM(L34:L36) -> 1460.9 | N38: =SUM(N34:N36) -> 1160.9 | P38: =SUM(P34:P36) -> 860.9 | R38: =SUM(R34:R36) -> 560.9
B40: Deferred Taxes | D40: 558 | F40: 410.6 | H40: 287.4 | J40: =H40+'Target Assumptions'!J41 -> 287.4 | L40: =J40+'Target Assumptions'!L41 -> 287.4 | N40: =L40+'Target Assumptions'!N41 -> 287.4 | P40: =N40+'Target Assumptions'!P41 -> 287.4 | R40: =P40+'Target Assumptions'!R41 -> 287.4
B41: Other | D41: =145.2+114.7+356.2 -> 616.1 | F41: =190.6+102.9+90.6 -> 384.1 | H41: =209.6+106.4+127.9 -> 443.9 | J41: =H41+'Target Assumptions'!J27 -> 443.9 | L41: =J41+'Target Assumptions'!L27 -> 443.9 | N41: =L41+'Target Assumptions'!N27 -> 443.9 | P41: =N41+'Target Assumptions'!P27 -> 443.9 | R41: =P41+'Target Assumptions'!R27 -> 443.9
B43: Total Liabilities | D43: =D32+D38+SUM(D40:D41) -> 5048.1 | F43: =F32+F38+SUM(F40:F41) -> 4588.7 | H43: =H32+H38+SUM(H40:H41) -> 3984.6 | J43: =J32+J38+SUM(J40:J41) -> 3910.123096 | L43: =L32+L38+SUM(L40:L41) -> 3688.108866 | N43: =N32+N38+SUM(N40:N41) -> 3470.383854 | P43: =P32+P38+SUM(P40:P41) -> 3257.183965 | R43: =R32+R38+SUM(R40:R41) -> 3048.758084
B45: Common Stock | D45: =2.1+5222.9 -> 5225 | F45: =2.1+5441.1 -> 5443.2 | H45: =2.1+5731.6 -> 5733.7 | J45: =H45 -> 5733.7 | L45: =J45 -> 5733.7 | N45: =L45 -> 5733.7 | P45: =N45 -> 5733.7 | R45: =P45 -> 5733.7
B46: Preferred Equity | D46: 0 | F46: 0 | H46: 0 | J46: =H46 -> 0 | L46: =J46 -> 0 | N46: =L46 -> 0 | P46: =N46 -> 0 | R46: =P46 -> 0
B47: Retained Earnings | D47: 532.5 | F47: 911 | H47: 1341.8 | J47: =H47+'Target IS'!J38+'Target CF'!J37 -> 1518.855254 | L47: =J47+'Target IS'!L38+'Target CF'!L37 -> 1737.572588 | N47: =L47+'Target IS'!N38+'Target CF'!N37 -> 2000.143259 | P47: =N47+'Target IS'!P38+'Target CF'!P37 -> 2308.894835 | R47: =P47+'Target IS'!R38+'Target CF'!R37 -> 2666.299329
B48: Treasury Stock | D48: -1420 | F48: -1820 | H48: =-2482 -> -2482 | J48: =H48 -> -2482 | L48: =J48 -> -2482 | N48: =L48 -> -2482 | P48: =N48 -> -2482 | R48: =P48 -> -2482
B49: Other Adjustments | D49: 96.6 | F49: 65.1 | H49: 59.1 | J49: =H49 -> 59.1 | L49: =J49 -> 59.1 | N49: =L49 -> 59.1 | P49: =N49 -> 59.1 | R49: =P49 -> 59.1
B50: Noncontrolling Interest | D50: 4 | F50: 0 | H50: 0.8 | J50: =H50+'Target IS'!J30 -> 0.8 | L50: =J50+'Target IS'!L30 -> 0.8 | N50: =L50+'Target IS'!N30 -> 0.8 | P50: =N50+'Target IS'!P30 -> 0.8 | R50: =P50+'Target IS'!R30 -> 0.8
B51: Total Stockholders Equity | D51: =SUM(D45:D50) -> 4438.1 | E51: =SUM(E45:E50) -> 0 | F51: 4599.3 | G51: 0 | H51: 4653.4 | J51: =SUM(J45:J50) -> 4830.455254 | K51: =SUM(K45:K50) -> 0 | L51: 5049.172588 | M51: 0 | N51: 5311.743259 | O51: 0 | P51: 5620.494835 | Q51: 0 | R51: 5977.899329
B53: Total Liabilities and Equity | D53: =D43+D51 -> 9486.2 | F53: =F43+F51 -> 9188 | H53: =H43+H51 -> 8638 | J53: =J43+J51 -> 8740.57835 | L53: =L43+L51 -> 8737.281454 | N53: =N43+N51 -> 8782.127112 | P53: =P43+P51 -> 8877.678801 | R53: =R43+R51 -> 9026.657413
B57: Reconciliation | D57: =D53-D27 -> 0 | F57: =F53-F27 -> 0 | H57: =H53-H27 -> 0 | J57: =J53-J27 -> 0 | L57: =L53-L27 -> 0 | N57: =N53-N27 -> 0 | P57: =P53-P27 -> 0 | R57: =R53-R27 -> 0

Sheet Target CF
A1: ='Target BS'!A1 -> Target | S1: Statement of Cash Flow
A2: ($Millions, except per share data)
F6: ='Target BS'!D6 -> Actual | J6: ='Target BS'!J6 -> Projections for the Period Ending December 31,
F7: ='Target BS'!F7 -> 2012 | H7: ='Target BS'!H7 -> 2013 | J7: ='Target BS'!J7 -> 2014 | L7: ='Target BS'!L7 -> 2015 | N7: ='Target BS'!N7 -> 2016 | P7: ='Target BS'!P7 -> 2017 | R7: ='Target BS'!R7 -> 2018
B9: Net Income | F9: ='Target IS'!F38 -> -59 | H9: ='Target IS'!H38 -> 161.9 | J9: ='Target IS'!J38 -> 177.055254 | L9: ='Target IS'!L38 -> 218.717334 | N9: ='Target IS'!N38 -> 262.5706706 | P9: ='Target IS'!P38 -> 308.7515766 | R9: ='Target IS'!R38 -> 357.4044939
B11: Depreciation & Amortization | F11: ='Target IS'!F46 -> 437.5 | H11: ='Target IS'!H46 -> 428.9 | J11: ='Target IS'!J46 -> 433.63896 | L11: ='Target IS'!L46 -> 440.9891028 | N11: ='Target IS'!N46 -> 448.7435035 | P11: ='Target IS'!P46 -> 456.9243961 | R11: ='Target IS'!R46 -> 465.5552379
B13: Income from Affiliates, Net of Dividends | F13: ='Target IS'!F23-'Target Assumptions'!F42 -> 0 | H13: ='Target IS'!H23-'Target Assumptions'!H42 -> 0 | J13: ='Target IS'!J23+'Target Assumptions'!J42 -> 0 | L13: ='Target IS'!L23+'Target Assumptions'!L42 -> 0 | N13: ='Target IS'!N23+'Target Assumptions'!N42 -> 0 | P13: ='Target IS'!P23+'Target Assumptions'!P42 -> 0 | R13: ='Target IS'!R23+'Target Assumptions'!R42 -> 0
A15: Change in
B17: Accounts Receivable | F17: ='Target BS'!D10-'Target BS'!F10 -> -49.5 | H17: ='Target BS'!F10-'Target BS'!H10 -> -60.3 | J17: ='Target BS'!H10-'Target BS'!J10 -> 22.24018493 | L17: ='Target BS'!J10-'Target BS'!L10 -> -37.12828983 | N17: ='Target BS'!L10-'Target BS'!N10 -> -39.17034577 | P17: ='Target BS'!N10-'Target BS'!P10 -> -41.32471479 | R17: ='Target BS'!P10-'Target BS'!R10 -> -43.5975741
B18: Inventory | F18: ='Target BS'!D11-'Target BS'!F11 -> -54.8 | H18: ='Target BS'!F11-'Target BS'!H11 -> -25.6 | J18: ='Target BS'!H11-'Target BS'!J11 -> -9.773907123 | L18: ='Target BS'!J11-'Target BS'!L11 -> -22.73006489 | N18: ='Target BS'!L11-'Target BS'!N11 -> -23.98021846 | P18: ='Target BS'!N11-'Target BS'!P11 -> -25.29913048 | R18: ='Target BS'!P11-'Target BS'!R11 -> -26.69058265
B19: Other Current Assets | F19: ='Target BS'!D12-'Target BS'!F12 -> 84.4 | H19: ='Target BS'!F12-'Target BS'!H12 -> -51.5 | J19: ='Target BS'!H12-'Target BS'!J12 -> 18.4080375 | L19: ='Target BS'!J12-'Target BS'!L12 -> -12.63305794 | N19: ='Target BS'!L12-'Target BS'!N12 -> -13.32787612 | P19: ='Target BS'!N12-'Target BS'!P12 -> -14.06090931 | R19: ='Target BS'!P12-'Target BS'!R12 -> -14.83425932
B20: Accounts Payable | F20: ='Target BS'!F29-'Target BS'!D29 -> 4 | H20: ='Target BS'!H29-'Target BS'!F29 -> 8.2 | J20: ='Target BS'!J29-'Target BS'!H29 -> 10.19709863 | L20: ='Target BS'!L29-'Target BS'!J29 -> 10.82384042 | N20: ='Target BS'!N29-'Target BS'!L29 -> 11.41915165 | P20: ='Target BS'!P29-'Target BS'!N29 -> 12.04720499 | R20: ='Target BS'!R29-'Target BS'!P29 -> 12.70980126
B21: Other Current Liabilities | F21: ='Target BS'!F30-'Target BS'!D30 -> 345.9 | H21: ='Target BS'!H30-'Target BS'!F30 -> -312.1 | J21: ='Target BS'!J30-'Target BS'!H30 -> 215.325997 | L21: ='Target BS'!L30-'Target BS'!J30 -> 67.16192984 | N21: ='Target BS'!N30-'Target BS'!L30 -> 70.85583598 | P21: ='Target BS'!P30-'Target BS'!N30 -> 74.75290695 | R21: ='Target BS'!R30-'Target BS'!P30 -> 78.86431684
B22: Other Assets | F22: ='Target BS'!D25-'Target BS'!F25 -> 36.6 | H22: ='Target BS'!F25-'Target BS'!H25 -> 4.4 | J22: ='Target BS'!H25-'Target BS'!J25 -> 0 | L22: ='Target BS'!J25-'Target BS'!L25 -> 0 | N22: ='Target BS'!L25-'Target BS'!N25 -> 0 | P22: ='Target BS'!N25-'Target BS'!P25 -> 0 | R22: ='Target BS'!P25-'Target BS'!R25 -> 0
B23: Deferred Taxes | F23: ='Target BS'!F40-'Target BS'!D40+'Target BS'!D23-'Target BS'!F23 -> -149.4 | H23: ='Target BS'!H40-'Target BS'!F40+'Target BS'!F23-'Target BS'!H23 -> -117.4 | J23: ='Target BS'!J40-'Target BS'!H40+'Target BS'!H23-'Target BS'!J23 -> 0 | L23: ='Target BS'!L40-'Target BS'!J40+'Target BS'!J23-'Target BS'!L23 -> 0 | N23: ='Target BS'!N40-'Target BS'!L40+'Target BS'!L23-'Target BS'!N23 -> 0 | P23: ='Target BS'!P40-'Target BS'!N40+'Target BS'!N23-'Target BS'!P23 -> 0 | R23: ='Target BS'!R40-'Target BS'!P40+'Target BS'!P23-'Target BS'!R23 -> 0
B24: Minority Interest | F24: ='Target BS'!F50-'Target BS'!D50 -> -4 | H24: ='Target BS'!H50-'Target BS'!F50 -> 0.8 | J24: ='Target BS'!J50-'Target BS'!H50 -> 0 | L24: ='Target BS'!L50-'Target BS'!J50 -> 0 | N24: ='Target BS'!N50-'Target BS'!L50 -> 0 | P24: ='Target BS'!P50-'Target BS'!N50 -> 0 | R24: ='Target BS'!R50-'Target BS'!P50 -> 0
B25: OtherLiabilities | F25: ='Target BS'!F41-'Target BS'!D41 -> -232 | H25: ='Target BS'!H41-'Target BS'!F41 -> 59.8 | J25: ='Target BS'!J41-'Target BS'!H41 -> 0 | L25: ='Target BS'!L41-'Target BS'!J41 -> 0 | N25: ='Target BS'!N41-'Target BS'!L41 -> 0 | P25: ='Target BS'!P41-'Target BS'!N41 -> 0 | R25: ='Target BS'!R41-'Target BS'!P41 -> 0
A27: Cash Flow from Operating Activities | F27: =SUM(F9:F25) -> 359.7 | H27: =SUM(H9:H25) -> 97.1 | J27: =SUM(J9:J25) -> 867.0916249 | L27: =SUM(L9:L25) -> 665.2007944 | N27: =SUM(N9:N25) -> 717.1107213 | P27: =SUM(P9:P25) -> 771.7913301 | R27: =SUM(R9:R25) -> 829.4114338
B29: Capital Expenditures | F29: =-'Target IS'!F47 -> -13.8 | H29: =-'Target IS'!H47 -> -10.3 | J29: =-'Target IS'!J47 -> -16.70487 | L29: =-'Target IS'!L47 -> -17.62363785 | N29: =-'Target IS'!N47 -> -18.59293793 | P29: =-'Target IS'!P47 -> -19.61554952 | R29: =-'Target IS'!R47 -> -20.69440474
B30: Acquisitions | F30: -0.1 | H30: -149 | J30: 0 | K30: 0 | L30: 0 | M30: 0 | N30: 0 | O30: 0 | P30: 0 | Q30: 0 | R30: 0
B31: Sale of Assets | F31: 3.4 | H31: 25.5 | J31: 0 | L31: 0 | N31: 0 | P31: 0 | R31: 0
A33: Cash Flow from Investing Activities | F33: =SUM(F29:F31) -> -10.5 | H33: =SUM(H29:H31) -> -133.8 | J33: =SUM(J29:J31) -> -16.70487 | L33: =SUM(L29:L31) -> -17.62363785 | N33: =SUM(N29:N31) -> -18.59293793 | P33: =SUM(P29:P31) -> -19.61554952 | R33: =SUM(R29:R31) -> -20.69440474
B35: Net Change in Equity | F35: ='Target BS'!F45-'Target BS'!D45+'Target BS'!F46-'Target BS'!D46+'Target BS'!F48-'Target BS'!D48+'Target BS'!F49-'Target BS'!D49 -> -213.3 | H35: ='Target BS'!H45-'Target BS'!F45+'Target BS'!H46-'Target BS'!F46+'Target BS'!H48-'Target BS'!F48+'Target BS'!H49-'Target BS'!F49 -> -377.5 | J35: ='Target BS'!J45-'Target BS'!H45+'Target BS'!J46-'Target BS'!H46+'Target BS'!J48-'Target BS'!H48+'Target BS'!J49-'Target BS'!H49 -> 0 | L35: ='Target BS'!L45-'Target BS'!J45+'Target BS'!L46-'Target BS'!J46+'Target BS'!L48-'Target BS'!J48+'Target BS'!L49-'Target BS'!J49 -> 0 | N35: ='Target BS'!N45-'Target BS'!L45+'Target BS'!N46-'Target BS'!L46+'Target BS'!N48-'Target BS'!L48+'Target BS'!N49-'Target BS'!L49 -> 0 | P35: ='Target BS'!P45-'Target BS'!N45+'Target BS'!P46-'Target BS'!N46+'Target BS'!P48-'Target BS'!N48+'Target BS'!P49-'Target BS'!N49 -> 0 | R35: ='Target BS'!R45-'Target BS'!P45+'Target BS'!R46-'Target BS'!P46+'Target BS'!R48-'Target BS'!P48+'Target BS'!R49-'Target BS'!P49 -> 0
B36: Net Change in Debt | F36: ='Target BS'!F35-'Target BS'!D35+'Target BS'!F36-'Target BS'!D36 -> -429.9 | H36: ='Target BS'!H35-'Target BS'!F35+'Target BS'!H36-'Target BS'!F36 -> -236.8 | J36: ='Target BS'!J35-'Target BS'!H35+'Target BS'!J36-'Target BS'!H36 -> -300 | L36: ='Target BS'!L35-'Target BS'!J35+'Target BS'!L36-'Target BS'!J36 -> -300 | N36: ='Target BS'!N35-'Target BS'!L35+'Target BS'!N36-'Target BS'!L36 -> -300 | P36: ='Target BS'!P35-'Target BS'!N35+'Target BS'!P36-'Target BS'!N36 -> -300 | R36: ='Target BS'!R35-'Target BS'!P35+'Target BS'!R36-'Target BS'!P36 -> -300
B37: Dividends Paid | F37: =-'Target Assumptions'!F46 -> 0 | H37: =-'Target Assumptions'!H46 -> 0 | J37: =-'Target Assumptions'!J46 -> 0 | L37: =-'Target Assumptions'!L46 -> 0 | N37: =-'Target Assumptions'!N46 -> 0 | P37: =-'Target Assumptions'!P46 -> 0 | R37: =-'Target Assumptions'!R46 -> 0
A39: Cash Flow from Financing Activities | F39: =SUM(F35:F37) -> -643.2 | H39: =SUM(H35:H37) -> -614.3 | J39: =SUM(J35:J37) -> -300 | L39: =SUM(L35:L37) -> -300 | N39: =SUM(N35:N37) -> -300 | P39: =SUM(P35:P37) -> -300 | R39: =SUM(R35:R37) -> -300
B41: Net Change in Cash | F41: =F27+F33+F39 -> -294 | H41: =H27+H33+H39 -> -651 | J41: =J27+J33+J39 -> 550.3867549 | L41: =L27+L33+L39 -> 347.5771565 | N41: =N27+N33+N39 -> 398.5177834 | P41: =P27+P33+P39 -> 452.1757806 | R41: =R27+R33+R39 -> 508.7170291
B43: Beginning Cash Balance | F43: ='Target BS'!D9 -> 854.9 | H43: ='Target BS'!F9 -> 882.1 | J43: ='Target BS'!H9 -> 276.3 | L43: ='Target BS'!J9 -> 826.6867549 | N43: ='Target BS'!L9 -> 1174.263911 | P43: ='Target BS'!N9 -> 1572.781695 | R43: ='Target BS'!P9 -> 2024.957475
B45: Cash Available for Revolving Credit | F45: =F41+F43 -> 560.9 | H45: =H41+H43 -> 231.1 | J45: =J41+J43 -> 826.6867549 | L45: =L41+L43 -> 1174.263911 | N45: =N41+N43 -> 1572.781695 | P45: =P41+P43 -> 2024.957475 | R45: =R41+R43 -> 2533.674505
B49: Beginning Revolver | J49: ='Target BS'!H34 -> 0 | L49: ='Target BS'!J34 -> 0 | N49: ='Target BS'!L34 -> 0 | P49: ='Target BS'!N34 -> 0 | R49: ='Target BS'!P34 -> 0
B50: Total Repayment | J50: =IF(J45-J49<$F$54,J45-$F$54,J49) -> 0 | L50: =IF(L45-L49<$F$54,L45-$F$54,L49) -> 0 | N50: =IF(N45-N49<$F$54,N45-$F$54,N49) -> 0 | P50: =IF(P45-P49<$F$54,P45-$F$54,P49) -> 0 | R50: =IF(R45-R49<$F$54,R45-$F$54,R49) -> 0
B51: Ending Revolving Credit Facility | J51: =J49-J50 -> 0 | L51: =L49-L50 -> 0 | N51: =N49-N50 -> 0 | P51: =P49-P50 -> 0 | R51: =R49-R50 -> 0
B52: Ending Cash | J52: =IF(J45-J49<0,$F$54,J45-J50) -> 826.6867549 | L52: =IF(L45-L49<0,$F$54,L45-L50) -> 1174.263911 | N52: =IF(N45-N49<0,$F$54,N45-N50) -> 1572.781695 | P52: =IF(P45-P49<0,$F$54,P45-P50) -> 2024.957475 | R52: =IF(R45-R49<0,$F$54,R45-R50) -> 2533.674505
B54: Minimum Cash Balance | F54: 0

Sheet Valuation
B1: Valuation
B3: Target | D3: 2014 | E3: 2015 | F3: 2016 | G3: 2017 | H3: 2018
B4: Free Cash Flow | J4: Definitions
B5: EBIT | D5: ='Target IS'!J20 -> 390.63709 | E5: ='Target IS'!L20 -> 445.07389 | F5: ='Target IS'!N20 -> 503.1627843 | G5: ='Target IS'!P20 -> 565.130961 | H5: ='Target IS'!R20 -> 631.2191565 | J5: WACC = (D/(D+E))*[(1-T)*[Cost of Debt]]+(E/(D+E))*ke
B6: Less: Taxes | D6: =D5*'Target Assumptions'!J47 -> 156.254836 | E6: =E5*'Target Assumptions'!L47 -> 178.029556 | F6: =F5*'Target Assumptions'!N47 -> 201.2651137 | G6: =G5*'Target Assumptions'!P47 -> 226.0523844 | H6: =H5*'Target Assumptions'!R47 -> 252.4876626 | J6: D = Debt
B7: Plus: Deprec. & Amort.. | D7: ='Target IS'!J17+'Target IS'!J18 -> 433.63896 | E7: ='Target IS'!L17+'Target IS'!L18 -> 440.9891028 | F7: ='Target IS'!N17+'Target IS'!N18 -> 448.7435035 | G7: ='Target IS'!P17+'Target IS'!P18 -> 456.9243961 | H7: ='Target IS'!R17+'Target IS'!R18 -> 465.5552379 | J7: E = Equity
B8: Less: Gross Capex | D8: =-'Target CF'!J29 -> 16.70487 | E8: =-'Target CF'!L29 -> 17.62363785 | F8: =-'Target CF'!N29 -> 18.59293793 | G8: =-'Target CF'!P29 -> 19.61554952 | H8: =-'Target CF'!R29 -> 20.69440474 | J8: T = Corporate marginal tax rate | L8: (i.e., 40%)
B9: Less: ∆ NWC | D9: ='Target CF'!J17+'Target CF'!J18+'Target CF'!J20+'Target CF'!J23+'Target CF'!J25 -> 22.66337644 | E9: ='Target CF'!L17+'Target CF'!L18+'Target CF'!L20+'Target CF'!L23+'Target CF'!L25 -> -49.0345143 | F9: ='Target CF'!N17+'Target CF'!N18+'Target CF'!N20+'Target CF'!N23+'Target CF'!N25 -> -51.73141258 | G9: ='Target CF'!P17+'Target CF'!P18+'Target CF'!P20+'Target CF'!P23+'Target CF'!P25 -> -54.57664027 | H9: ='Target CF'!R17+'Target CF'!R18+'Target CF'!R20+'Target CF'!R23+'Target CF'!R25 -> -57.57835549 | J9: ke = Cost of Equity (Estimated using the Capital Asset Pricing Model)
B10: Equals: Free Cash Flow | D10: =SUM(D5:D9) -> 1019.899132 | E10: =SUM(E5:E9) -> 1032.681672 | F10: 1120.032927 | G10: 1213.146651 | H10: 1312.378106 | J10: NWC = Net working capital excluding cash & marketable securities
B11: Period | D11: 1 | E11: 1 | F11: 1 | G11: 1 | H11: 1 | J11: Discount factor uses mid-year convention in which cash flows occur evenly
B12: Mid-Year Convention | D12: =D11/2 -> 0.5 | E12: =D11+E11/2 -> 1.5 | F12: =F11/2+SUM(D11:E11) -> 2.5 | G12: =G11/2+SUM(D11:F11) -> 3.5 | H12: =H11/2+SUM(D11:G11) -> 4.5 | J12: throughout the year.
B13: Discount Factor | D13: =1/(1+D24)^D12 -> 0.95429713 | E13: =1/(1+D24)^E12 -> 0.8690621849 | F13: =1/(1+D24)^F12 -> 0.7914401684 | G13: =1/(1+D24)^G12 -> 0.7207511166 | H13: =1/(1+D24)^H12 -> 0.6563757979 | J13: Rf = Risk free rate approximated by the 10-year U.S. treasury bond rate.
B14: PV FCFF | D14: =D10*D13 -> 973.2868149 | E14: =E10*E13 -> 897.4645904 | F14: 886.4390482 | G14: 874.3768032 | H14: 861.4132267 | J14: Rm = Return on a broad based stock index
J15: Rf - Rm = Average historical equity risk premium since 1963
B16: PV (Years 1- 5) | D16: =SUM(D14:H14) -> 4492.980483 | J16: Period reflects months of actual data available for first forecast year, i.e.,
B17: PV (Terminal Value) | D17: =+IF(ISERROR(D33*(1+D34)/(D35-D34)*H13),0,D33*(1+D34)/(D35-D34)*H13) -> 13863.36912 | J17: if have 9 months actual data, period 1 equals .25, if have one half
B18: Enterprise Value | D18: =SUM(D16:D17) -> 18356.3496 | J18: year of data, period 1 is .5; if 3 months available, period 1 equals.75
B19: Plus Cash | D19: ='Target BS'!H9 -> 276.3 | J19: FCF2020 is recalculated to reflect the maximum marginal tax rate rather than the
B20: Less Debt & Min. Int. | D20: ='Target BS'!H38+'Target BS'!H50 -> 2061.7 | J20: effective tax rate.
B21: Equity Value | D21: =D18+D19-D20 -> 16570.9496 | J21: Target D/E* represents the future debt to equity ratio desired by the firm.
B22: Equity Value Per Share | D22: =+IF(ISERROR(D21/'Target Assumptions'!H53),0,D21/'Target Assumptions'!H53) -> 94.96246189 | J22: Target D/TC* represents the implied future debt to total capital ratio desired
B23: Assumptions: | J23: by the firm.
B24: WACC | D24: ='Target Assumptions'!J57*(1-0.4)*D26+D28*(1-D26) -> 0.09807692308
B25: Target D/E* | D25: 0.3
B26: Target D/TC* | D26: =D25/(1+D25) -> 0.2307692308
B27: Marginal Tax Rate | D27: 0.4
B28: ke | D28: =D29+D31*D30 -> 0.1185
B29: Rf | D29: 0.025
B30: Rf - Rm | D30: 0.055
B31: Beta | D31: 1.7
B32: Terminal Value
B33: FCF 2020 | D33: =H10 -> 1312.378106
B34: Terminal Growth Rate | D34: 0.03
B35: Terminal Period WACC | D35: 0.094
